Cogmind - Beta 10.1 --- EXPLORER MODE // 2020.09.25 @ 18:16:28 Player: 1Q84 Result: Self-destructed Performance ------------- Evolutions (0) 0 Regions Visited (4) 800 Robots Destroyed (12) 60 Value Destroyed (383) 383 Prototype IDs (23) 460 Alien Tech Used (0) 0 Bonus (300) 300 TOTAL SCORE: 2003 Bonus ------- Aligned with FarCom 300 Cogmind --------- Core Integrity 131/250 Matter 290/300 Energy 100/100 System Corruption 0% Temperature Cool (0) Movement Treading (190) Ox1 Location -9/Mines Parts ------- > --- POWER (1) -------- (None) > --- PROPULSION (2) --- Armored Treads > --- UTILITY (3) ------ Thermal Converter Large Storage Unit Hardened Medium Armor Plating > --- WEAPON (2) ------- Pulse Rifle Latent Energy Streamer > --- INVENTORY (10) --- Medium Storage Unit Medium Storage Unit Large Storage Unit Large Storage Unit Target Analyzer Reactive Plating Datajack Peak State ------------ > --- POWER ------------ (None) > --- PROPULSION ------- Armored Treads > --- UTILITY ---------- Thermal Converter Large Storage Unit Hardened Medium Armor Plating > --- WEAPON ----------- Pulse Rifle Latent Energy Streamer > --- INVENTORY -------- Medium Storage Unit Medium Storage Unit Large Storage Unit Large Storage Unit Target Analyzer Reactive Plating Datajack [Rating: 24] Favorites ----------- Power Ion Engine Engine Ion Engine Power Core Light Nuclear Core Propulsion Armored Treads Treads Armored Treads Leg Aluminum Leg Utility Large Storage Unit Device Thermal Converter Storage Large Storage Unit Protection Hardened Medium Armor Plating Weapon Pulse Rifle Energy Gun Pulse Rifle Energy Cannon Latent Energy Streamer Build | -11 -10 -10 -10 -9 ------- Run | Scr Mat Min Exi Min Slots Evolved 1 | . 1 . . . Power . | . . . . . Propulsion . | . . . . . Utility 1 | . 1 . . . Weapon . | . . . . . Parts Attached 20 | 6 7 6 1 . Power 3 | 1 2 . . . Engine 2 | 1 1 . . . Core 1 | . 1 . . . Reactor . | . . . . . Propulsion 4 | 2 1 1 . . Treads 1 | . . 1 . . Leg 3 | 2 1 . . . Wheel . | . . . . . Hover . | . . . . . Flight . | . . . . . Utility 6 | 1 2 3 . . Device 2 | . 1 1 . . Storage 3 | 1 1 1 . . Processor . | . . . . . Hackware . | . . . . . Protection 1 | . . 1 . . Artifact . | . . . . . Weapon 7 | 2 2 2 1 . Energy Gun 6 | 2 2 2 . . Energy Cannon 1 | . . . 1 . Ballistic Gun . | . . . . . Ballistic Cannon . | . . . . . Launcher . | . . . . . Special Weapon . | . . . . . Impact Weapon . | . . . . . Slashing Weapon . | . . . . . Piercing Weapon . | . . . . . Special Melee Weapon . | . . . . . Unidentified Prototypes . | . . . . . Parts Lost 6 | . 5 1 . . Power 1 | . 1 . . . Propulsion 2 | . 2 . . . Utility . | . . . . . Weapon 3 | . 2 1 . . Highest Loss Streak 5 | . 5 1 . . Average Slot Usage (%) 72 | . 84 69 68 75 Engine 1 | . 6 . . . Treads 9 | . . 11 12 12 Leg 4 | . 23 . . . Device 10 | . 5 11 12 12 Storage 13 | . 20 12 12 12 Protection 9 | . . 11 12 12 Energy Gun 18 | . 22 19 12 12 Energy Cannon 1 | . . . 5 12 Naked Turns . | . . . . . Heaviest Build 38 | 16 25 30 38 38 Greatest Support 20 | 20 20 20 20 20 Greatest Overweight (x) 6 | 4 5 6 1 1 Average Overweight (x) . | . . 1 1 1 Largest Inventory Capacity 18 | 8 12 18 10 10 Average Capacity 10 | 7 10 10 10 10 Most Carried 7 | . 4 7 7 7 Average Carried 5 | . 2 6 7 7 Final Capacity 12 | 8 12 10 10 10 Final Carried 7 | . 4 7 7 7 Class Distribution -------------------- 100% | Hacker-Mutant Dominant Class ---------------- Hacker-Mutant | -10/Materials Hacker-Mutant | -10/Mines Hacker-Mutant | -10/Exiles Hacker-Mutant | -9/Mines Resources | -11 -10 -10 -10 -9 ----------- Run | Scr Mat Min Exi Min Matter Collected 370 | 259 51 60 . . Remotely . | . . . . . Salvage Created 426 | . 224 202 . . Parts 12 | . 5 7 . . Haulers Intercepted . | . . . . . Recyclers Shooed . | . . . . . Parts Field Recycled . | . . . . . Retrieved Matter . | . . . . . Parts Self-Destructed . | . . . . . Prevented . | . . . . . Kills | -11 -10 -10 -10 -9 ------- Run | Scr Mat Min Exi Min Combat Hostiles Destroyed 11 | . 5 6 . . Guns 11 | . 5 6 . . Classes Destroyed 3 | . 1 2 . . Builder 1 | . . 1 . . Swarmer 2 | . . 2 . . Grunt 9 | . 5 4 . . Best Kill Streak 2 | . 2 2 . . Combat Bots Only 2 | . 2 2 . . Max Kills in Single Turn 1 | . 1 1 . . Gunslinging . | . . . . . Exploded . | . . . . . Melee . | . . . . . Uniques/NPCs Destroyed . | . . . . . Combat | -11 -10 -10 -10 -9 -------- Run | Scr Mat Min Exi Min Damage Taken 614 | . 490 77 . 47 Core 119 | . 85 16 . 18 Absorbed by Shields . | . . . . . Core Remaining (%) 100 | 100 . . . . Volleys Fired 38 | . 25 13 . . Largest 2 | . 2 2 . . Hottest 113 | . 90 113 . . Shots Fired 63 | . 48 15 . . Gun 63 | . 48 15 . . Cannon . | . . . . . Launcher . | . . . . . Special . | . . . . . Kinetic . | . . . . . Thermal 63 | . 48 15 . . Explosive . | . . . . . Electromagnetic . | . . . . . Robot Hit Streak 28 | . 28 17 . . Robot Miss Streak 1 | . 1 1 . . Penetration Max . | . . . . . Secondary Targets . | . . . . . Shots Hit Robots 57 | . 44 13 . . Core Hits 20 | . 12 8 . . Critical Hits . | . . . . . Critical Kills . | . . . . . Critical Parts Destroyed . | . . . . . Melee Attacks . | . . . . . Impact . | . . . . . Slashing . | . . . . . Piercing . | . . . . . Sneak Attacks . | . . . . . Combat Hostiles . | . . . . . Follow-up Attacks . | . . . . . Damage Inflicted 748 | . 539 209 . . Guns 735 | . 539 196 . . Cannons . | . . . . . Explosions . | . . . . . Melee . | . . . . . Ramming 13 | . . 13 . . Kinetic . | . . . . . Thermal 735 | . 539 196 . . Explosive . | . . . . . Electromagnetic . | . . . . . Impact . | . . . . . Slashing . | . . . . . Piercing . | . . . . . Highest Corruption . | . . . . . Average Corruption . | . . . . . Corruption Purged . | . . . . . Overload Shots . | . . . . . Overflow Damage . | . . . . . Projectiles . | . . . . . Explosions . | . . . . . Melee . | . . . . . Knockbacks . | . . . . . Impact . | . . . . . Kinetic . | . . . . . Secondary . | . . . . . Self-Inflicted Damage . | . . . . . Shots . | . . . . . Rammed 1 | . . 1 . . Targets Rammed 2 | . . 2 . . Kicked . | . . . . . Crushed 1 | . . 1 . . Highest Temperature 270 | . 270 147 . . Average Temperature 97 | . 113 62 . . Received Heat Transfer 528 | . 432 51 . 45 Siege Activations . | . . . . . Robots Corrupted . | . . . . . Combat Hostiles . | . . . . . Parts Fried . | . . . . . Impact Corruptions . | . . . . . Robots Melted . | . . . . . Combat Hostiles . | . . . . . Parts Melted 2 | . 2 . . . Heat Transferred 1869 | . 1425 444 . . Parts Sabotaged . | . . . . . Parts Stolen . | . . . . . Parts Stripped . | . . . . . Power Chain Reactions . | . . . . . Missiles Intercepted . | . . . . . Alert | -11 -10 -10 -10 -9 ------- Run | Scr Mat Min Exi Min Peak Influence 139 | . 139 50 . . Initial . | . . . . . Average 29 | . 58 22 . . Maximum Alert Level . | . . . . . Low Security (%) 100 | 100 100 100 . 100 Level 1 . | . . . . . Level 2 . | . . . . . Level 3 . | . . . . . Level 4 . | . . . . . Level 5 . | . . . . . High Security . | . . . . . Max Security . | . . . . . Squads Dispatched 1 | . . 1 . . Investigation 1 | . . 1 . . Extermination . | . . . . . Reinforcement . | . . . . . Assault . | . . . . . Garrison . | . . . . . Intercept . | . . . . . Construction Impeded . | . . . . . Haulers Reinforced . | . . . . . Stealth | -11 -10 -10 -10 -9 --------- Run | Scr Mat Min Exi Min Distress Signals . | . . . . . Communications Jammed . | . . . . . Distress Signals . | . . . . . Times Spotted 18 | . 10 6 . 2 Peak Tracking Total 6 | . 6 2 . 2 Tactical Retreats . | . . . . . Traps | -11 -10 -10 -10 -9 ------- Run | Scr Mat Min Exi Min Traps Triggered 2 | . 2 . . . Indirectly . | . . . . . Trap Hack Attempts . | . . . . . Triggered . | . . . . . Disarmed . | . . . . . Reprogrammed . | . . . . . Reused . | . . . . . Traps Extracted . | . . . . . Installed . | . . . . . Triggered . | . . . . . Machines | -11 -10 -10 -10 -9 ---------- Run | Scr Mat Min Exi Min Machines Disabled . | . . . . . Max in Single Turn . | . . . . . Machines Sabotaged . | . . . . . Garrisons Compromised . | . . . . . Overloaded Fab Kills . | . . . . . Fab Network Shutdowns . | . . . . . Hacking | -11 -10 -10 -10 -9 --------- Run | Scr Mat Min Exi Min Machines Accessed 6 | . 4 1 1 . Terminals 4 | . 4 . . . Fabricators . | . . . . . Repair Stations . | . . . . . Recycling Units . | . . . . . Scanalyzers . | . . . . . Garrison Access . | . . . . . Total Hacks 9 | . 7 1 1 . Successful 8 | . 6 1 1 . Failed 1 | . 1 . . . Catastrophic . | . . . . . Database Lockouts . | . . . . . Manual 7 | . 6 . 1 . Terminals 7 | . 7 . . . Fabricators . | . . . . . Repair Stations . | . . . . . Recycling Units . | . . . . . Scanalyzers . | . . . . . Garrison Access . | . . . . . Terminal Hacks 3 | . 1 1 1 . Open Door 1 | . . 1 . . Branch Access Points 1 | . 1 . . . EX-Prototype ID Bank 1 | . . . 1 . Fabricator Hacks . | . . . . . Repair Station Hacks . | . . . . . Recycling Unit Hacks . | . . . . . Scanalyzer . | . . . . . Garrison Access Hacks . | . . . . . Unauthorized Hacks 5 | . 5 . . . Terminals 5 | . 5 . . . Botnet 4 | . 4 . . . Disrupt 1 | . 1 . . . Fabricators . | . . . . . Repair Stations . | . . . . . Recycling Units . | . . . . . Scanalyzers . | . . . . . Garrison Access . | . . . . . Data Cores Recovered . | . . . . . Used . | . . . . . Hacking Detections 1 | . 1 . . . Full Trace Events . | . . . . . Feedback Events . | . . . . . Feedback Blocked . | . . . . . Robot Schematics Acquired . | . . . . . Robots Built . | . . . . . Matter . | . . . . . Time . | . . . . . Total Robot Build Rating . | . . . . . Part Schematics Acquired . | . . . . . Parts Built . | . . . . . Matter . | . . . . . Time . | . . . . . Total Part Build Rating . | . . . . . Parts Repaired . | . . . . . Time . | . . . . . Parts Recycled . | . . . . . Recycled Matter . | . . . . . Retrieved Matter . | . . . . . Retrieved Components . | . . . . . Parts Scanalyzed . | . . . . . Part Schematics Acquired . | . . . . . Parts Damaged . | . . . . . Bothacking | -11 -10 -10 -10 -9 ------------ Run | Scr Mat Min Exi Min Used RIF Installer . | . . . . . Robots Hacked . | . . . . . Non-combat . | . . . . . Combat . | . . . . . Robot Hacks Applied . | . . . . . Relay Couplers Released . | . . . . . Robots Rewired . | . . . . . Allies Hacked . | . . . . . Hacks Repelled . | . . . . . Allies | -11 -10 -10 -10 -9 -------- Run | Scr Mat Min Exi Min Total Allies . | . . . . . Largest Group . | . . . . . Highest-Rated Group . | . . . . . Highest-Rated Ally . | . . . . . Total Orders . | . . . . . Ally Attacks . | . . . . . Total Damage . | . . . . . Kills . | . . . . . Allies Corrupted . | . . . . . Allies Melted . | . . . . . Intel | -11 -10 -10 -10 -9 ------- Run | Scr Mat Min Exi Min Robot Analysis Total . | . . . . . Derelict Logs Recovered . | . . . . . Drone Launches . | . . . . . Drone Recoveries . | . . . . . Exploration | -11 -10 -10 -10 -9 ------------- Run | Scr Mat Min Exi Min Turns Passed 2184 | 46 425 1173 437 103 Spaces Moved 1112 | 31 231 570 230 50 Core 18 | 6 3 9 . . Treads 841 | . . 561 230 50 Legs 253 | 25 228 . . . Wheels . | . . . . . Hover . | . . . . . Flight . | . . . . . Fastest Speed 50 | 50 120 170 190 190 Average Speed 179 | 121 141 192 190 190 Slowest Speed 350 | 250 300 350 190 190 Overloaded Moves . | . . . . . Propulsion Burnouts . | . . . . . Robots Hopped . | . . . . . Cave-ins Triggered . | . . . . . Exploration Rate (%) 43 | 3 42 95 62 14 Regions Visited 4 Branch Regions 3 Pre-discovered Areas 1 | . . 1 . . Known Exits Taken 4 | 1 1 1 1 . Unknown Exits Taken . | . . . . . Scrap Searched 1 | . . 1 . . Spaces Dug . | . . . . . Terrain Destroyed . | . . . . . Melee . | . . . . . Projectile . | . . . . . AOE . | . . . . . Terrain Rammed . | . . . . . Walls Destroyed . | . . . . . Machines Disabled . | . . . . . Actions | -11 -10 -10 -10 -9 --------- Run | Scr Mat Min Exi Min Total 1233 | 36 280 629 230 58 Wait 55 | . 14 33 . 8 Move 1108 | 30 230 569 229 50 Hop . | . . . . . Pick Up 6 | . 3 3 . . Fast Attach 17 | 6 6 4 1 . Attach 2 | . . 2 . . Detach 2 | . . 2 . . Swap 1 | . 1 . . . Drop 2 | . 1 1 . . Fire 38 | . 25 13 . . Melee . | . . . . . Ram . | . . . . . Kick . | . . . . . Crush 2 | . . 2 . . Escape Stasis . | . . . . . Rewire . | . . . . . Trap . | . . . . . Miscellaneous . | . . . . . Route ------- -11/Scrapyard -10/Materials (discovered 2 exits: *Mat / *Min) -10/Mines (discovered 3 exits: *Mat x2 / *Exi) -10/Exiles (discovered 2 exits: *Min x2) -9/Mines History --------- Turn | Location | Event 22 | -11/Scrapyard | Identified exit to Materials 22 | -11/Scrapyard | Discovered exit to Materials (range 16) 47 | -11/Scrapyard | Entered Materials 47 | -10/Materials | Evolved 1 slot: Utility x1 124 | -10/Materials | Identified exit to Mines 316 | -10/Materials | Build established: Hacker-Mutant 335 | -10/Materials | Identified exit to Materials 335 | -10/Materials | Discovered exit to Materials (range 10) 472 | -10/Materials | Entered Mines 478 | -10/Mines | Met a Derelict shopkeep closing up shop 496 | -10/Mines | Lost 5 parts (1p2n2w) 889 | -10/Mines | Deemed a non-threat by the Exiles lab entrance 891 | -10/Mines | Identified exit to Exiles 891 | -10/Mines | Discovered exit to Exiles (range 5) 1197 | -10/Mines | Discovered exit to Materials (range 8) 1237 | -10/Mines | Discovered exit to Materials (range 7) 1450 | -10/Mines | Learned location of Storage (-7) 1645 | -10/Mines | Entered Exiles 1674 | -10/Exiles | Identified exit to Mines 1674 | -10/Exiles | Discovered exit to Mines (range 15) 1697 | -10/Exiles | Met 8R-AWN 1723 | -10/Exiles | Met EX-HEX 1784 | -10/Exiles | Met EX-BIN 1805 | -10/Exiles | Aligned with FarCom system 1807 | -10/Exiles | Given EX-Vault access code 1854 | -10/Exiles | Opened EX-Vault 1870 | -10/Exiles | Found Latent Energy Streamer 1909 | -10/Exiles | Warned to stay clear of 0b10 Research branches 1966 | -10/Exiles | Met EX-DEC 2065 | -10/Exiles | Discovered exit to Mines (range 10) 2082 | -10/Exiles | Left Exiles lab with Latent Energy Streamer 2082 | -10/Exiles | Entered Mines 2185 | -9/Mines | Self-destructed Last Messages --------------- branches, since the FarCom signals could be picked up there, but you're welcome to try if you really want to. And if we have to leave here due to unforeseen circumstances, don't worry the FarCom system will continue to maintain contact via our distributed network. EX-BIN: And don't even think about spreading that code around. We're gonna change it right after you leave. Most certainly not to something like 1234 which I did last time as a little joke and some thief managed to sneak in here and steal a few of HEX's prototypes. EX-DEC: Ah I see we have a visitor. One wrong move in here and I'll invert your atomic chain! 01968_ EX-DEC: "Oops, I hope HEX didn't hear that..." 02065_ EXIT=FOUND: MINES LOCATION=MINES GOAL=ESCAPE 02082_ Receiving FarCom transmissions... 02085_ K-01 Serf collects debris. 02155_ C-30 ARC bursts open, deploying its payload. 02155_ G-47 Trooper unfolds itself. 02155_ G-34 Mercenary unfolds itself. Map ----- +----------------------------------------------------+ | ?????????????????????????????????????????????? | | ?????????????????????????????????????????????? | | ?????????????????????????????????????????????? | | ?????????????????????????????????????????????? | | ?????????????????????????????????????????????? | | ?????????????????????????????????????????????? | | ?????????????????????????????????????????????? | | ?????????????????????????????????????????????? | | ?????????????????????????????????????????????? | | ?????????????????????????????????????????????? | | ?????????????????????????????????????????????? | | ?????????????????????????????????????????????? | | ?????????????????????????????????????????????? | | ?????????????????????????????????????????????? | | ?????????????????????????????????????????????? | | ?????????????????????????????????????????????? | | ?????????????????????????????????????????????? | | ?????????????????????????????????????????????? | | ??????????????????????#####??????????????????? | | ?????????????????????## ##?????????????????? | | ????????????????????## #?????????????????? | | ???????????????????## """ #?????????????????? | | ???????????????# ### """ #######???????????? | | ???????????????# """ #???????????? | | ???????????????# ##### #???????????? | | ????????????????### ## @##???# #???????????? | | ??????????????????##???# ##????# #???????????? | | ??????????????????????##g####### ######??????? | | ??????????????????????# g #??????? | | ??????????????????????# ############# #??????? | | ????????????????????### ##??????????# #??????? | | ???????????????????## ##???????### ####???? | | ???????????????????# #?####### #???? | | ???????????????????# ### #???? | | ???????????????????## ##### #???? | | ????????????????????## #???# #???? | | ????????????????????## ######???# #???? | | ????????????????????# #????????########???? | | ??????????????? #???????????????????? | | ??????????# #???????????????????? | | ??????????#% #???????????????????? | | ??????????# ### ##???????????????????? | | ??????????# ???######????????????????????? | | ?????????? ??????????????????????????????? | | ?????????? ???????????????????????????????? | | ??????????? #????????????????????????????????? | | ?????????????????????????????????????????????? | | ?????????????????????????????????????????????? | | ?????????????????????????????????????????????? | | ?????????????????????????????????????????????? | +----------------------------------------------------+ Best States ------------- Heat Dissipation 39 Energy Generation 14 Energy Capacity 250 Matter Stores 300 Matter Capacity 300 Sight Range 16 Terrain Scan Density 10 Armor Coverage 225 Resistance: KI 35 Resistance: TH 35 Resistance: EX 35 Resistance: EM 35 Resistance: I 35 Resistance: S 35 Resistance: P 35 Thermal Conversion 30 Evasion (%) 40 Recoil Reduction 1 Offensive Hacking 20 Item Schematics ----------------- None Robot Schematics ------------------ None Fabricated ------------ Nothing Alien Tech Used ----------------- None Achievements -------------- None Challenges ------------ None Game ------ Seed SwordPulseBlaster Manual? 0 Play Time 00:12:55 Cumulative 74.7 hours Start 2020.09.25 @ 17:51:33 End 2020.09.25 @ 18:16:28 Sessions 1 Manual Loads 0 Difficulty Explorer Special Mode None Game No. 128 Rogue 0 Adventurer 0 Explorer 128 Win Type - Total 0 Types 0/0/0/0/0/0/0/0/0 Lore% 50 Gallery% 62 Achievement% 48 Wizard Run 0 Options --------- ASCII 0 Keyboard 0 Movement Numpad Keybinds 0 Fullscreen 1 Font 36/Smallcaps Map View 76x50 Tactical HUD 1 Map Filters NONE Filters NONE Steam 1 RUN: 390756db-cc75-4193-8e21-4c6c278e1aaf